Workbook

Sheet Orçamento
B2: ORÇAMENTO REFERENCIAL
B3: Ponte Rio Topázio (Cristalina - GO) | L3: Extensão: 0,035 km
H4: BDI | I4: ='BDI '!$E$20/100 -> 0.2781
H5: BDI REDUZIDO | I5: ='BDI Diferenciado'!$E$19/100 -> 0.15 | L5: Região: GO
B6: Órgão responsável: CODEVASF | L6: Data base: abril/2024 - sem desoneração
B9: ITEM | C9: CÓDIGO | D9: DESCRIÇÃO DO SERVIÇO | E9: UNIDADE | F9: BASE REFERENCIAL | G9: QUANTIDADE | H9: CUSTO UNITÁRIO (R$) | I9: BDI % | J9: DT | K9: PREÇO UNITÁRIO C/ BDI (R$) | L9: PREÇO TOTAL (R$)
B11: 1. | D11: SERVIÇOS PRELIMINARES | L11: =SUM(L12:L16) -> 606438.45 | N11: T
B12: 1.1 | C12: CPU.1 | D12: Administração local | E12: un | F12: PROPRIA | G12: 1 | H12: 264709.61 | I12: =IF(E12="","",$I$4) -> 0.2781 | K12: =IF(E12="","",TRUNC(H12*(1+I12),2)) -> 338325.35 | L12: =IF(E12="","",TRUNC(G12*K12,2)) -> 338325.35
B13: 1.2 | C13: CPU.2 | D13: Mobiização e desmobilização | E13: un | F13: PROPRIA | G13: 1 | H13: 38340.26 | I13: =IF(E13="","",$I$4) -> 0.2781 | K13: 49002.68 | L13: 49002.68
B14: 1.3 | C14: CPU.3 | D14: Canteiro de obras | E14: un | F14: PROPRIA | G14: 1 | H14: 159434.54 | I14: =IF(E14="","",$I$4) -> 0.2781 | K14: =IF(E14="","",TRUNC(H14*(1+I14),2)) -> 203773.28 | L14: =IF(E14="","",TRUNC(G14*K14,2)) -> 203773.28
B15: 1.4 | C15: 5213570 | D15: Placa em aço - película I + I - fornecimento e implantação | E15: m² | F15: SICRO | G15: 25 | H15: 453.68 | I15: 0.2781 | K15: =IF(E15="","",TRUNC(H15*(1+I15),2)) -> 579.84 | L15: =IF(E15="","",TRUNC(G15*K15,2)) -> 14496
B16: 1.5 | C16: 5216111 | D16: Suporte para placa de sinalização em madeira de lei tratada 8 x 8 cm - fornecimento e implantação | E16: un | F16: SICRO | G16: 6 | H16: 109.69 | I16: 0.2781 | K16: 140.19 | L16: 841.14
B17: 2. | D17: TERRAPLANAGEM | K17: =IF(E17="","",ROUND(H17*(1+I17),2)) ->  | L17: =SUM(L18:L22) -> 28338.24 | N17: T
B18: 2.1. | C18: 5501700 | D18: Desmatamento, destocamento e limpeza de área com árvores de diâmetro até 0,15 m | E18: m² | F18: SICRO | G18: 370.02 | H18: 0.52 | I18: 0.2781 | K18: =IF(E18="","",TRUNC(H18*(1+I18),2)) -> 0.66 | L18: =IF(E18="","",TRUNC(G18*K18,2)) -> 244.21
B19: 2.2. | C19: 5502985 | D19: Limpeza mecanizada da camada vegetal | E19: m² | F19: SICRO | G19: 4397.23 | H19: 0.56 | I19: 0.2781 | K19: 0.71 | L19: 3122.03
B20: 2.3. | C20: 5501710 | D20: Escavação, carga e transporte em material de 1ª categoria - DMT de 50 m | E20: m³ | F20: SICRO | G20: 1231.99 | H20: 2.8 | I20: 0.2781 | K20: 3.57 | L20: 4398.2
B21: 2.4. | C21: 5502137 | D21: Escavação, carga e transporte de material de 1ª categoria - DMT de 400 a 600 m - caminho de serviço em revestimento primário - com escavadeira e caminhão basculante de 14 m³ | E21: m³ | F21: SICRO | G21: 1137.34 | H21: 5.9 | I21: 0.2781 | K21: 7.54 | L21: 8575.54
B22: 2.5. | C22: 5502978 | D22: Compactação de aterros a 100% do proctor normal | E22: m³ | F22: SICRO | G22: 1895.46 | H22: 4.96 | I22: 0.2781 | K22: 6.33 | L22: 11998.26
B23: 3. | D23: GABIÃO | L23: =SUM(L24:L33) -> 543850.47 | N23: T
B24: 3.1. | C24: 3205864 | D24: Gabião caixa 2 x 1 x 0,50 m - ZN/AL + PVC - D = 2,4 mm - pedra de mão comercial - fornecimento e assentamento | E24: m³ | F24: SICRO | G24: 172.75 | H24: 1023.99 | I24: 0.2781 | K24: =IF(E24="","",TRUNC(H24*(1+I24),2)) -> 1308.76 | L24: =IF(E24="","",TRUNC(G24*K24,2)) -> 226088.29
B25: 3.2. | C25: 3205866 | D25: Gabião caixa 2 x 1 x 1,00 m - ZN/AL + PVC - D = 2,4 mm - pedra de mão comercial - fornecimento e assentamento | E25: m³ | F25: SICRO | G25: 204.4 | H25: 787.58 | I25: 0.2781 | K25: 1006.6 | L25: 205749.04
B26: 3.3. | C26: 3205876 | D26: Gabião colchão espessura 0,30 m - ZN/AL + PVC - D = 2,0 mm - pedra de mão comercial - fornecimento e assentamento | E26: m² | F26: SICRO | G26: 160.57 | H26: 330.05 | I26: 0.2781 | K26: 421.83 | L26: 67733.24
B27: 3.4. | C27: 5501706 | D27: Escavação mecânica com retroescavadeira em material de 1ª categoria | E27: m³ | F27: SICRO | G27: 905.65 | H27: 6.77 | I27: 0.2781 | K27: 8.65 | L27: 7833.87
B28: 3.5. | C28: 2003867 | D28: Aplicação de geotêxtil não-tecido agulhado com resistência à tração longitudinal de 31 KN/m | E28: m² | F28: SICRO | G28: 729.97 | H28: 16.88 | I28: 0.2781 | K28: 21.57 | L28: 15745.45
B29: 3.6. | C29: 4815671 | D29: Reaterro e compactação com soquete vibratório | E29: m³ | F29: SICRO | G29: 550.46 | H29: 16.03 | I29: 0.2781 | K29: 20.48 | L29: 11273.42
B30: 3.7. | C30: 5915320 | D30: Transporte com caminhão basculante de 14 m³ - rodovia em revestimento primário - rachão | E30: tkm | F30: SICRO | G30: 4695.54 | H30: 0.69 | I30: 0.2781 | J30: 6.4 | K30: 0.88 | L30: 4132.07
B31: 3.8. | C31: 5915321 | D31: Transporte com caminhão basculante de 14 m³ - rodovia pavimentada - rachão | E31: tkm | F31: SICRO | G31: 6162.9 | H31: 0.62 | I31: 0.2781 | J31: 8.4 | K31: 0.79 | L31: 4868.69
B32: 3.9. | C32: 5914464 | D32: Transporte com caminhão carroceria de 15 t - rodovia em revestimento primário - gabião+geotêxtil | E32: tkm | F32: SICRO | G32: 25.85 | H32: 0.85 | I32: 0.2781 | J32: 5.6 | K32: 1.08 | L32: 27.91
B33: 3.10. | C33: 5914479 | D33: Transporte com caminhão carroceria de 15 t - rodovia pavimentada - gabião+geotêxtil | E33: tkm | F33: SICRO | G33: 452.83 | H33: 0.69 | I33: =IF(E33="","",$I$4) -> 0.2781 | J33: 98.1 | K33: 0.88 | L33: 398.49
B34: 4. | D34: OBRA DE ARTE ESPECIAL | L34: =SUM(L35:L91) -> 1247890.73 | N34: T
B35: 4.1. | D35: INFRAESTRUTURA | L35: =IF(E35="","",ROUND(G35*K35,2)) ->  | N35: ST
B36: 4.1.1. | C36: 4805749 | D36: Escavação manual de vala em material de 1ª categoria | E36: m³ | F36: SICRO | G36: 60.84 | H36: 70.16 | I36: 0.2781 | K36: =IF(E36="","",TRUNC(H36*(1+I36),2)) -> 89.67 | L36: =IF(E36="","",TRUNC(G36*K36,2)) -> 5455.52
B37: 4.1.2. | C37: 4815671 | D37: Reaterro e compactação com soquete vibratório | E37: m³ | F37: SICRO | G37: 33 | H37: 16.03 | I37: 0.2781 | K37: 20.48 | L37: 675.84
B38: 4.1.3. | C38: 2306066 | D38: Estaca raiz perfurada no solo com D = 40 cm - confecção | E38: m | F38: SICRO | G38: 20 | H38: 229.43 | I38: 0.2781 | K38: 293.23 | L38: 5864.6
B39: 4.1.4. | C39: 2306071 | D39: Estaca raiz perfurada na rocha com D = 40 cm - confecção | E39: m | F39: SICRO | G39: 100 | H39: 1863.55 | I39: 0.2781 | K39: 2381.8 | L39: 238180
B40: 4.1.5. | C40: 2306248 | D40: Arrasamento de estacas de concreto com seção superior à 900 cm² | E40: m³ | F40: SICRO | G40: 0.25 | H40: 541.14 | I40: 0.2781 | K40: 691.63 | L40: 172.9
B41: 4.1.6. | C41: 3106120 | D41: Fôrmas de tábuas de pinho - utilização de 2 vezes - confecção, instalação e retirada | E41: m² | F41: SICRO | G41: 47.04 | H41: 105.3 | I41: 0.2781 | K41: 134.58 | L41: 6330.64
B42: 4.1.7. | C42: 0407819 | D42: Armação em aço CA-50 - fornecimento, preparo e colocação | E42: kg | F42: SICRO | G42: 3388 | H42: 12.01 | I42: 0.2781 | K42: 15.34 | L42: 51971.92
B43: 4.1.8. | C43: 1107888 | D43: Concreto fck = 15 MPa - confecção em betoneira e lançamento manual - areia e brita comerciais | E43: m³ | F43: SICRO | G43: 1.16 | H43: 456.67 | I43: 0.2781 | K43: 583.66 | L43: 677.04
B44: 4.1.9. | C44: 1107900 | D44: Concreto fck = 30 MPa - confecção em betoneira e lançamento manual - areia e brita comerciais | E44: m³ | F44: SICRO | G44: 42.92 | H44: 513.74 | I44: =IF(E44="","",$I$4) -> 0.2781 | K44: 656.61 | L44: 28181.7
B45: 4.1.10. | C45: 1100657 | D45: Adensamento de concreto por vibrador de imersão | E45: m³ | F45: SICRO | G45: 44.08 | H45: 3.19 | I45: 0.2781 | K45: 4.07 | L45: 179.4
B46: 4.2. | D46: MESOESTRUTURA | N46: ST
B47: 4.2.1. | C47: 2108169 | D47: Escoramento com pontaletes D = 15 cm - utilização de 1 vez - confecção e instalação | E47: m³ | F47: SICRO | G47: 145.24 | H47: 51.58 | I47: 0.2781 | K47: =IF(E47="","",TRUNC(H47*(1+I47),2)) -> 65.92 | L47: =IF(E47="","",TRUNC(G47*K47,2)) -> 9574.22
B48: 4.2.2. | C48: 3108016 | D48: Fôrmas de compensado plastificado 14 mm - uso geral - utilização de 2 vezes - confecção, instalação e retirada | E48: m² | F48: SICRO | G48: 83.82 | H48: 95.82 | I48: 0.2781 | K48: 122.46 | L48: 10264.59
B49: 4.2.3. | C49: 1107900 | D49: Concreto fck = 30 MPa - confecção em betoneira e lançamento manual - areia e brita comerciais | E49: m³ | F49: SICRO | G49: 20.18 | H49: 513.74 | I49: 0.2781 | K49: 656.61 | L49: 13250.38
B50: 4.2.4. | C50: 1100657 | D50: Adensamento de concreto por vibrador de imersão | E50: m³ | F50: SICRO | G50: 20.18 | H50: 3.19 | I50: =IF(E50="","",$I$4) -> 0.2781 | K50: 4.07 | L50: 82.13
B51: 4.2.5. | C51: 1109680 | D51: Argamassa para reparos e grauteamento - confecção em misturador e lançamento manual | E51: m³ | F51: SICRO | G51: 0.05 | H51: 4063.31 | I51: 0.2781 | K51: 5193.31 | L51: 259.66
B52: 4.2.6. | C52: 0407819 | D52: Armação em aço CA-50 - fornecimento, preparo e colocação | E52: kg | F52: SICRO | G52: 1678 | H52: 12.01 | I52: 0.2781 | K52: 15.34 | L52: 25740.52
B53: 4.2.7. | C53: 0407820 | D53: Armação em aço CA-60 - fornecimento, preparo e colocação | E53: kg | F53: SICRO | G53: 56 | H53: 13.25 | I53: 0.2781 | K53: 16.93 | L53: 948.08
B54: 4.2.8. | C54: 0307731 | D54: Aparelho de apoio de neoprene fretado para estruturas moldadas no local - fornecimento e instalação | E54: dm³ | F54: SICRO | G54: 42 | H54: 127.79 | I54: 0.2781 | K54: 163.32 | L54: 6859.44
B55: 4.3. | D55: SUPERESTRUTURA | N55: ST
B56: 4.3.1. | D56: SUPERESTRUTURA LONGARINA | G56: - | H56: - | N56: ST
B57: 4.3.1.1. | C57: 3108016 | D57: Fôrmas de compensado plastificado 14 mm - uso geral - utilização de 2 vezes - confecção, instalação e retirada | E57: m² | F57: SICRO | G57: 241.5 | H57: 95.82 | I57: 0.2781 | K57: =IF(E57="","",TRUNC(H57*(1+I57),2)) -> 122.46 | L57: =IF(E57="","",TRUNC(G57*K57,2)) -> 29574.09
B58: 4.3.1.2. | C58: 1107900 | D58: Concreto fck = 30 MPa - confecção em betoneira e lançamento manual - areia e brita comerciais | E58: m³ | F58: SICRO | G58: 55.82 | H58: 513.74 | I58: 0.2781 | K58: 656.61 | L58: 36651.97
B59: 4.3.1.3. | C59: 1100657 | D59: Adensamento de concreto por vibrador de imersão | E59: m³ | F59: SICRO | G59: 55.82 | H59: 3.19 | I59: =IF(E59="","",$I$4) -> 0.2781 | K59: 4.07 | L59: 227.18
B60: 4.3.1.4. | C60: 0407819 | D60: Armação em aço CA-50 - fornecimento, preparo e colocação | E60: kg | F60: SICRO | G60: 14890 | H60: 12.01 | I60: 0.2781 | K60: 15.34 | L60: 228412.6
B61: 4.3.2. | D61: SUPERESTRUTURA (LAJE+TRANSVERSINAS+ALAS | G61: - | H61: - | N61: ST
B62: 4.3.2.1. | C62: 2108169 | D62: Escoramento com pontaletes D = 15 cm - utilização de 1 vez - confecção e instalação | E62: m³ | F62: SICRO | G62: 2205.64 | H62: 51.58 | I62: 0.2781 | K62: =IF(E62="","",TRUNC(H62*(1+I62),2)) -> 65.92 | L62: =IF(E62="","",TRUNC(G62*K62,2)) -> 145395.78
B63: 4.3.2.2. | C63: 3108016 | D63: Fôrmas de compensado plastificado 14 mm - uso geral - utilização de 2 vezes - confecção, instalação e retirada | E63: m² | F63: SICRO | G63: 369.26 | H63: 95.82 | I63: 0.2781 | K63: 122.46 | L63: 45219.57
B64: 4.3.2.3. | C64: 1107900 | D64: Concreto fck = 30 MPa - confecção em betoneira e lançamento manual - areia e brita comerciais | E64: m³ | F64: SICRO | G64: 83.62 | H64: 513.74 | I64: 0.2781 | K64: 656.61 | L64: 54905.72
B65: 4.3.2.4. | C65: 1100657 | D65: Adensamento de concreto por vibrador de imersão | E65: m³ | F65: SICRO | G65: 83.62 | H65: 3.19 | I65: 0.2781 | K65: 4.07 | L65: 340.33
B66: 4.3.2.5. | C66: 0407819 | D66: Armação em aço CA-50 - fornecimento, preparo e colocação | E66: kg | F66: SICRO | G66: 10818 | H66: 12.01 | I66: 0.2781 | K66: 15.34 | L66: 165948.12
B67: 4.3.3. | D67: LAJE DE TRANSIÇÃO | G67: - | H67: - | N67: ST
B68: 4.3.3.1. | C68: 3108016 | D68: Fôrmas de compensado plastificado 14 mm - uso geral - utilização de 2 vezes - confecção, instalação e retirada | E68: m² | F68: SICRO | G68: 12.32 | H68: 95.82 | I68: 0.2781 | K68: =IF(E68="","",TRUNC(H68*(1+I68),2)) -> 122.46 | L68: =IF(E68="","",TRUNC(G68*K68,2)) -> 1508.7
B69: 4.3.3.2. | C69: 1107900 | D69: Concreto fck = 30 MPa - confecção em betoneira e lançamento manual - areia e brita comerciais | E69: m³ | F69: SICRO | G69: 15.02 | H69: 513.74 | I69: 0.2781 | K69: 656.61 | L69: 9862.28
B70: 4.3.3.3. | C70: 1100657 | D70: Adensamento de concreto por vibrador de imersão | E70: m³ | F70: SICRO | G70: 15.02 | H70: 3.19 | I70: =IF(E70="","",$I$4) -> 0.2781 | K70: 4.07 | L70: 61.13
B71: 4.3.3.4. | C71: 0407819 | D71: Armação em aço CA-50 - fornecimento, preparo e colocação | E71: kg | F71: SICRO | G71: 1633 | H71: 12.01 | I71: 0.2781 | K71: 15.34 | L71: 25050.22
B72: 4.3.4. | D72: BARREIRA NEW JERSEY | G72: - | H72: - | N72: ST
B73: 4.3.4.1. | C73: 3108016 | D73: Fôrmas de compensado plastificado 14 mm - uso geral - utilização de 2 vezes - confecção, instalação e retirada | E73: m² | F73: SICRO | G73: 124.6 | H73: 95.82 | I73: 0.2781 | K73: =IF(E73="","",TRUNC(H73*(1+I73),2)) -> 122.46 | L73: =IF(E73="","",TRUNC(G73*K73,2)) -> 15258.51
B74: 4.3.4.2. | C74: 1107900 | D74: Concreto fck = 30 MPa - confecção em betoneira e lançamento manual - areia e brita comerciais | E74: m³ | F74: SICRO | G74: 16.48 | H74: 513.74 | I74: 0.2781 | K74: 656.61 | L74: 10820.93
B75: 4.3.4.3. | C75: 1100657 | D75: Adensamento de concreto por vibrador de imersão | E75: m³ | F75: SICRO | G75: 16.48 | H75: 3.19 | I75: 0.2781 | K75: 4.07 | L75: 67.07
B76: 4.3.4.4. | C76: 0407819 | D76: Armação em aço CA-50 - fornecimento, preparo e colocação | E76: kg | F76: SICRO | G76: 1394 | H76: 12.01 | I76: 0.2781 | K76: 15.34 | L76: 21383.96
B77: 4.3.5. | D77: DIVERSOS | G77: - | H77: - | N77: ST
B78: 4.3.5.1. | C78: 2007971 | D78: Dreno de PVC D = 100 mm para OAE - fornecimento e instalação | E78: m | F78: SICRO | G78: 18 | H78: 95.33 | I78: =IF(E78="","",$I$4) -> 0.2781 | K78: =IF(E78="","",TRUNC(H78*(1+I78),2)) -> 121.84 | L78: =IF(E78="","",TRUNC(G78*K78,2)) -> 2193.12
B79: 4.3.5.2. | C79: 1107896 | D79: Concreto fck = 25 MPa - confecção em betoneira e lançamento manual - areia e brita comerciais | E79: m³ | F79: SICRO | G79: 20.23 | H79: 492.59 | I79: 0.2781 | K79: 629.57 | L79: 12736.2
B80: 4.3.5.3. | C80: 1100657 | D80: Adensamento de concreto por vibrador de imersão | E80: m³ | F80: SICRO | G80: 20.23 | H80: 3.19 | I80: 0.2781 | K80: 4.07 | L80: 82.33
B81: 4.4. | D81: TRANSPORTE | N81: ST
B82: 4.4.1. | C82: 5915320 | D82: Transporte com caminhão basculante de 14 m³ - rodovia em revestimento primário - brita | E82: tkm | F82: SICRO | G82: 1802.51 | H82: 0.69 | I82: 0.2781 | J82: 6.4 | K82: =IF(E82="","",TRUNC(H82*(1+I82),2)) -> 0.88 | L82: =IF(E82="","",TRUNC(G82*K82,2)) -> 1586.2
B83: 4.4.2. | C83: 5915320 | D83: Transporte com caminhão basculante de 14 m³ - rodovia em revestimento primário - areia | E83: tkm | F83: SICRO | G83: 2253.07 | H83: 0.69 | I83: 0.2781 | J83: 9.1 | K83: 0.88 | L83: 1982.7
B84: 4.4.3. | C84: 5915321 | D84: Transporte com caminhão basculante de 14 m³ - rodovia pavimentada - brita | E84: tkm | F84: SICRO | G84: 2365.79 | H84: 0.62 | I84: 0.2781 | J84: 8.4 | K84: 0.79 | L84: 1868.97
B85: 4.4.4. | C85: 5915321 | D85: Transporte com caminhão basculante de 14 m³ - rodovia pavimentada - areia | E85: tkm | F85: SICRO | G85: 10250.21 | H85: 0.62 | I85: 0.2781 | J85: 41.4 | K85: 0.79 | L85: 8097.66
B86: 4.4.5. | C86: 5914464 | D86: Transporte com caminhão carroceria de 15 t - rodovia em revestimento primário - cimento | E86: tkm | F86: SICRO | G86: 557 | H86: 0.85 | I86: 0.2781 | J86: 5.6 | K86: 1.08 | L86: 601.56
B87: 4.4.6. | C87: 5914479 | D87: Transporte com caminhão carroceria de 15 t - rodovia pavimentada - cimento | E87: tkm | F87: SICRO | G87: 12771.3 | H87: 0.69 | I87: 0.2781 | J87: 128.4 | K87: 0.88 | L87: 11238.74
B88: 4.4.7. | C88: 5914464 | D88: Transporte com caminhão carroceria de 15 t - rodovia em revestimento primário - madeira+desmoldante | E88: tkm | F88: SICRO | G88: 518.73 | H88: 0.85 | I88: 0.2781 | J88: 5.6 | K88: 1.08 | L88: 560.22
B89: 4.4.8. | C89: 5914479 | D89: Transporte com caminhão carroceria de 15 t - rodovia pavimentada - madeira+desmoldante | E89: tkm | F89: SICRO | G89: 9087.02 | H89: 0.69 | I89: 0.2781 | J89: 98.1 | K89: 0.88 | L89: 7996.57
B90: 4.4.9. | C90: 5914464 | D90: Transporte com caminhão carroceria de 15 t - rodovia em revestimento primário - aço+aparelho de apoio | E90: tkm | F90: SICRO | G90: 217.62 | H90: 0.85 | I90: 0.2781 | J90: 5.6 | K90: 1.08 | L90: 235.02
B91: 4.4.10. | C91: 5914479 | D91: Transporte com caminhão carroceria de 15 t - rodovia pavimentada - aço+aparelho de apoio | E91: tkm | F91: SICRO | G91: 3812.17 | H91: 0.69 | I91: 0.2781 | J91: 98.1 | K91: 0.88 | L91: 3354.7
B92: 5. | D92: SINALIZAÇÃO | K92: =IF(E92="","",ROUND(H92*(1+I92),2)) ->  | L92: =SUM(L93:L98) -> 3033.71 | N92: T
B93: 5.1. | C93: 5213464 | D93: Placa de advertência em aço, lado de 0,60 m - película retrorrefletiva tipo I + SI - fornecimento e implantação | E93: un | F93: SICRO | G93: 2 | H93: 245.7 | I93: 0.2781 | K93: =IF(E93="","",TRUNC(H93*(1+I93),2)) -> 314.02 | L93: =IF(E93="","",TRUNC(G93*K93,2)) -> 628.04
B94: 5.2. | C94: 5213572 | D94: Placa em aço - película III + III - fornecimento e implantação | E94: m² | F94: SICRO | G94: 0.57 | H94: 628.61 | I94: 0.2781 | K94: 803.42 | L94: 457.94
B95: 5.3. | C95: 5213477 | D95: Placa delineador em aço - 0,30 x 0,90 m - película retrorrefletiva tipo I + IV - fornecimento e implantação | E95: un | F95: SICRO | G95: 4 | H95: 158.16 | I95: 0.2781 | K95: 202.14 | L95: 808.56
B96: 5.4. | C96: 5216111 | D96: Suporte para placa de sinalização em madeira de lei tratada 8 x 8 cm - fornecimento e implantação | E96: un | F96: SICRO | G96: 8 | H96: 109.69 | I96: 0.2781 | K96: 140.19 | L96: 1121.52
B97: 5.5. | C97: 5914464 | D97: Transporte com caminhão carroceria de 15 t - rodovia em revestimento primário - madeira+placas | E97: tkm | F97: SICRO | G97: 1.07 | H97: 0.85 | I97: 0.2781 | J97: 5.6 | K97: 1.08 | L97: 1.15
B98: 5.6. | C98: 5914479 | D98: Transporte com caminhão carroceria de 15 t - rodovia pavimentada - madeira+placas | E98: tkm | F98: SICRO | G98: 18.76 | H98: 0.69 | I98: 0.2781 | J98: 98.1 | K98: 0.88 | L98: 16.5
B99: 6. | D99: OBRAS COMPLEMENTARES | L99: =SUM(L100:L107) -> 27209.94 | N99: T
B100: 6.1. | C100: 3713613 | D100: Cerca com 4 fios de arame liso galvanizado e mourão de madeira a cada 2,5 m e esticador a cada 50 m | E100: m | F100: SICRO | G100: 271 | H100: 19.87 | I100: 0.2781 | K100: =IF(E100="","",TRUNC(H100*(1+I100),2)) -> 25.39 | L100: =IF(E100="","",TRUNC(G100*K100,2)) -> 6880.69
B101: 6.2. | C101: 1600966 | D101: Remoção de cerca com mourões de concreto | E101: m | F101: SICRO | G101: 258 | H101: 0.72 | I101: 0.2781 | K101: 0.92 | L101: 237.36
B102: 6.3. | C102: 4413200 | D102: Plantio de grama comercial em placas | E102: m² | F102: SICRO | G102: 355.53 | H102: 15.62 | I102: 0.2781 | K102: 19.96 | L102: 7096.37
B103: 6.4. | C103: 4413905 | D103: Hidrossemeadura | E103: m² | F103: SICRO | G103: 1421.67 | H103: 6.55 | I103: 0.2781 | K103: 8.37 | L103: 11899.37
B104: 6.5. | C104: 5914464 | D104: Transporte com caminhão carroceria de 15 t - rodovia em revestimento primário - arame+madeira | E104: tkm | F104: SICRO | G104: 11.82 | H104: 0.85 | I104: =IF(E104="","",$I$4) -> 0.2781 | J104: 5.6 | K104: 1.08 | L104: 12.76
B105: 6.6. | C105: 5914479 | D105: Transporte com caminhão carroceria de 15 t - rodovia pavimentada - arame+madeira | E105: tkm | F105: SICRO | G105: 207.1 | H105: 0.69 | I105: 0.2781 | J105: 98.1 | K105: 0.88 | L105: 182.24
B106: 6.7. | C106: 5914464 | D106: Transporte com caminhão carroceria de 15 t - rodovia em revestimento primário - grama+aditivos hidrossemeadura | E106: tkm | F106: SICRO | G106: 54.63 | H106: 0.85 | I106: 0.2781 | J106: 5.6 | K106: 1.08 | L106: 59
B107: 6.8. | C107: 5914479 | D107: Transporte com caminhão carroceria de 15 t - rodovia pavimentada - grama+aditivos hidrossemeadura | E107: tkm | F107: SICRO | G107: 956.99 | H107: 0.69 | I107: 0.2781 | J107: 98.1 | K107: 0.88 | L107: 842.15
B108: x
B109: TOTAL GERAL | L109: =L11+L17+L23+L34+L92+L99 -> 2456761.54 | N109: T

Sheet Cronograma
B2: CRONOGRAMA FISICO-FINANCEIRO
B3: Ponte Rio Topázio (Cristalina - GO) | I3: Extensão: 0,035 km
I5: Região: GO
B6: Órgão responsável: CODEVASF | I6: Data base: janeiro/2024 - sem desoneração
B9: ITEM | C9: DISCRIMINAÇÃO | D9: VALOR DA ETAPA | E9: MESES
E10: 1 | F10: 2 | G10: 3 | H10: 4 | I10: 5
B11: 1. | C11: =Orçamento!D11 -> SERVIÇOS PRELIMINARES | D11: =Orçamento!L11 -> 606438.45 | E11: =((E16+E22+E19)/(SUM($D$14:$D$22))) -> 0.5132867647 | F11: =((F16+F22+F19)/(SUM($D$14:$D$22))) -> 0.1115778032 | G11: =((G16+G22+G19)/(SUM($D$14:$D$22))) -> 0.1115778032 | H11: =((H16+H22+H19)/(SUM($D$14:$D$22))) -> 0.1115778032 | I11: =((I16+I22+I19)/(SUM($D$14:$D$22))) -> 0.1519798258 | J11: =SUM(E11:I11) -> 1
E12: =IF(E11<>0,"=","") -> = | F12: = | G12: = | H12: = | I12: =
E13: =ROUND(E11*$D11,4) -> 311276.83 | F13: =+ROUND(F11*$D11,4) -> 67665.07 | G13: 67665.07 | H13: 67665.07 | I13: 92166.41
B14: 1.1 | C14: ADMINISTRAÇÃO LOCAL | D14: =Orçamento!$L$12 -> 338325.35 | E14: =1/5 -> 0.2 | F14: =1/5 -> 0.2 | G14: 0.2 | H14: 0.2 | I14: 0.2 | J14: =SUM(E14:I14) -> 1
E15: =IF(E14<>0,"=","") -> = | F15: = | G15: = | H15: = | I15: =
E16: =+ROUND(E14*$D14,4) -> 67665.07 | F16: 67665.07 | G16: 67665.07 | H16: 67665.07 | I16: 67665.07
B17: 1.2 | C17: MOBILIZAÇÃO E DESMOBILIZAÇÃO | D17: =Orçamento!$L$13 -> 49002.68 | E17: 0.5 | I17: 0.5 | J17: =SUM(E17:I17) -> 1
E18: =IF(E17<>0,"=","") -> = | I18: =
E19: =+ROUND(E17*$D17,4) -> 24501.34 | F19: 0 | G19: 0 | H19: 0 | I19: 24501.34
B20: 1.3 | C20: INSTALAÇÃO DE CANTEIRO DE OBRAS | D20: =Orçamento!$L$14+Orçamento!L15+Orçamento!L16 -> 219110.42 | E20: 1 | J20: =SUM(E20:I20) -> 1
E21: =IF(E20<>0,"=","") -> =
E22: =+ROUND(E20*$D20,4) -> 219110.42 | F22: =+ROUND(F20*$D20,4) -> 0 | G22: =+ROUND(G20*$D20,4) -> 0 | H22: =+ROUND(H20*$D20,4) -> 0 | I22: =+ROUND(I20*$D20,4) -> 0
B23: 2. | C23: =Orçamento!$D$17 -> TERRAPLANAGEM | D23: =Orçamento!$L$17 -> 28338.24 | H23: 0.7 | I23: 0.3 | J23: =SUM(E23:I23) -> 1
E24: =IF(E23<>0,"=","") ->  | H24: = | I24: =
E25: =+ROUND(E23*$D23,4) -> 0 | F25: 0 | G25: 0 | H25: 19836.768 | I25: 8501.472
B26: 3. | C26: =Orçamento!$D$23 -> GABIÃO | D26: =Orçamento!$L$23 -> 543850.47 | G26: 0.2 | H26: 0.7 | I26: 0.1 | J26: =SUM(E26:I26) -> 1
E27: =IF(E26<>0,"=","") ->  | G27: = | H27: = | I27: =
E28: =+ROUND(E26*$D26,4) -> 0 | F28: 0 | G28: 108770.094 | H28: 380695.329 | I28: 54385.047
B29: 4. | C29: =Orçamento!$D$34 -> OBRA DE ARTE ESPECIAL | D29: =Orçamento!$L$34 -> 1247890.73 | E29: 0.2 | F29: 0.35 | G29: 0.25 | H29: 0.15 | I29: 0.05 | J29: =SUM(E29:I29) -> 1
E30: =IF(E29<>0,"=","") -> = | F30: = | G30: = | H30: = | I30: =
E31: =+ROUND(E29*$D29,4) -> 249578.146 | F31: 436761.7555 | G31: 311972.6825 | H31: 187183.6095 | I31: 62394.5365
B32: 5. | C32: =Orçamento!$D$92 -> SINALIZAÇÃO | D32: =Orçamento!$L$92 -> 3033.71 | I32: 1 | J32: =SUM(E32:I32) -> 1
E33: =IF(E32<>0,"=","") ->  | I33: =
E34: =+ROUND(E32*$D32,4) -> 0 | F34: 0 | G34: 0 | H34: 0 | I34: 3033.71
B35: 6. | C35: =Orçamento!$D$99 -> OBRAS COMPLEMENTARES | D35: =Orçamento!$L$99 -> 27209.94 | H35: 0.05 | I35: 0.95 | J35: =SUM(E35:I35) -> 1
E36: =IF(E35<>0,"=","") ->  | H36: = | I36: =
E37: =+ROUND(E35*$D35,4) -> 0 | F37: 0 | G37: 0 | H37: 1360.497 | I37: 25849.443
B38: 7. | J38: =SUM(E38:I38) -> 0
E39: =IF(E38<>0,"=","") -> 
E40: =+ROUND(E38*$D38,4) -> 0 | F40: 0 | G40: 0 | H40: 0 | I40: 0
B41: 8. | J41: =SUM(E41:I41) -> 0
E42: =IF(E41<>0,"=","") -> 
E43: =+ROUND(E41*$D41,4) -> 0 | F43: 0 | G43: 0 | H43: 0 | I43: 0
B44: 9. | J44: =SUM(E44:I44) -> 0
E45: =IF(E44<>0,"=","") -> 
E46: =+ROUND(E44*$D44,4) -> 0 | F46: 0 | G46: 0 | H46: 0 | I46: 0
B47: 10. | J47: =SUM(E47:I47) -> 0
E48: =IF(E47<>0,"=","") -> 
E49: =+ROUND(E47*$D47,4) -> 0 | F49: 0 | G49: 0 | H49: 0 | I49: 0
C50: TOTAIS SIMPLES (%) | E50: =+E52/$D$53 -> 0.1830944691 | F50: =+F52/$D$53 -> 0.1646731611 | G50: =+G52/$D$53 -> 0.1594436694 | H50: =+H52/$D$53 -> 0.2143971258 | I50: =+I52/$D$53 -> 0.08041610711
C51: TOTAIS ACUMULADOS (%) | E51: =+E50 -> 0.1830944691 | F51: =+F50+E51 -> 0.3477676302 | G51: 0.5072112996 | H51: 0.7216084254 | I51: 0.8020245325
C52: TOTAIS SIMPLES (R$) | E52: =E16+E22+E19+E25+E28+E31+E34+E37 -> 560854.976 | F52: =F16+F22+F19+F25+F28+F31+F34+F37 -> 504426.8255 | G52: 488407.8465 | H52: 656741.2735 | I52: 246330.6185
C53: TOTAIS ACUMULADOS (R$) | D53: =SUM(D11:D52) -> 3063199.99 | E53: =+E52 -> 560854.976 | F53: =+E53+F52 -> 1065281.802 | G53: 1553689.648 | H53: 2210430.922 | I53: 2456761.54

Sheet BDI
B1: CODEVASF - COMPOSIÇÃO DA PARCELA DE BDI (BONIFICAÇÃO E DESPESAS INDIRETAS)
B2: Referência DNIT: Ofício-Circular nº 2699/2024 (SEI DNIT nº 17818943) - Período de vigência: Desde 24 de maio de 2024
B3: CONSTRUÇÃO DE OBRA DE ARTE ESPECIAIS - PEQUENO PORTE
B4: DESPESAS INDIRETAS | D4: ONERADO
D5: % sobre PV | E5: % sobre CD
B6: Administração Central | C6: Variável - f (CD) | D6: =E6/(1+E$20/100) -> 6.259291135 | E6: 8
B7: Despesas Financeiras | C7: =ROUND(((1+10.5/100)^(1/12)-1)*100,2) -> 0.84 | D7: =E7/(1+E$20/100) -> 0.7754557546 | E7: =E20-(E6+E8+E9+E12+E15+E16+E17+E18) -> 0.99111
B8: Seguros e Garantias Contratuais | C8: =D8 -> 0.25 | D8: 0.25 | E8: =D8*(1+E$20/100) -> 0.319525
B9: Riscos | C9: =D9 -> 0.5 | D9: 0.5 | E9: =D9*(1+E$20/100) -> 0.63905
C10: Sub-total 1 | D10: =SUM(D6:D9) -> 7.78474689 | E10: 9.949685
B11: BENEFÍCIOS | D11: % sobre PV | E11: % sobre CD
B12: Lucro | C12: Variável - f (CD) | D12: =E12/(1+E$20/100) -> 7.824113919 | E12: 10
C13: Sub-total 2 | D13: =D12 -> 7.824113919 | E13: 10
B14: TRIBUTOS | D14: % sobre PV | E14: % sobre CD
B15: PIS | C15: =D15 -> 0.65 | D15: 0.65 | E15: =D15*(1+E$20/100) -> 0.830765
B16: COFINS | C16: =D16 -> 3 | D16: 3 | E16: =D16*(1+E$20/100) -> 3.8343
B17: ISSQN | C17: 2.5 | D17: =D44*100 -> 2.5 | E17: =D17*(1+E$20/100) -> 3.19525
B18: CPRB | C18: 0 | D18: 0 | E18: =D18*(1+E$20/100) -> 0
C19: Sub-total | D19: =SUM(D15:D18) -> 6.15 | E19: =SUM(E15:E18) -> 7.860315
B20: BDI COM IMPOSTOS (%) | C20: Total | D20: =D10+D13+D19 -> 21.75886081 | E20: =ROUND(((1+(E6/100+E12/100-(C7/100*E12/100)))/(1-(C7/100+D9/100+D8/100+D15/100+D16/100+D17/100+D18/100))-1)*100,2) -> 27.81
B22: PV = Preço de Venda
B23: CD = Custo Direto
B24: SELIC (maio/2024) = 10,50% a.a. | E24: 10.5
B25: =CONCATENATE("DF = ((1+SELIC)1/12 -1) sobre (PV - Lucro), o que resulta em DF = ",ROUND(((1+$E$24/100)^(1/12)-1)*100,2),"% sobre (PV - Lucro)") -> DF = ((1+SELIC)1/12 -1) sobre (PV - Lucro), o que resulta em DF = 0,84% sobre (PV - Lucro)
B28: ISSQN MUNICIPAL
B29: Lei Complementar nº6, de 18 de dezembro de 2007 | D29: 0.05
B31: INCIDÊNCIA DE MATERIAIS NA OBRA
B32: DESCRIÇÃO | C32: TOTAL (R$) | D32: (%)
B33: MATERIAIS | C33: 874255.15 | D33: =C33/$C$34 -> 0.5989619114
B34: TOTAL | C34: 1459617.27 | D34: =SUM(D33:D33) -> 0.5989619114
B36: ISSQN REAL COM A DEDUÇÃO DE MATERIAIS
B37: ISSQN * % MATERIAL ORÇAMENTO | D37: =ROUND(D29*(1-D33),4) -> 0.0201
B39: Tendo como referência o art. 78 da Lei Complementar nº6, de 18 de dezembro de 2007, foi utilizada a dedução de 50% (cinquenta por cento) do material aplicado em execução de obras. Desta forma o ISSQN adotado será o indicado no quadro apresentado a seguir.
B44: ISSQN ADOTADO | D44: =MAX(ROUND(D29*(1-0.5),4),D37) -> 0.025
A96: https://www.gov.br/dnit/pt-br/assuntos/planejamento-e-pesquisa/custos-e-pagamentos/custos-e-pagamentos-dnit/sistemas-de-custos/bdi/AnexoBDISICRO_2024SELIC1050.pdf

Sheet BDI Diferenciado
B2: COMPOSIÇÃO DA PARCELA DE BDI (BONIFICAÇÃO E DESPESAS INDIRETAS) | G2: https://www.gov.br/dnit/pt-br/assuntos/planejamento-e-pesquisa/custos-e-pagamentos/custos-e-pagamentos-dnit/documentos/copy_of_MemorandoCircularn122012DIREX.pdf
B3: ITENS RELATIVOS A ADMINISTRAÇÃO DA OBRA | D3: % sobre PV | E3: % sobre CD
B4: A - Administração Central | C4: =E4 -> 3.45 | D4: =E4/(1+E$19/100) -> 3 | E4: 3.45 | G4: Memorando-Circular nº 12/2012/DIREX de 09 de março de 2012.
B5: B - Administração Local | C5: 0 | D5: =E5/(1+E$19/100) -> 0 | E5: 0
B6: C - Custos Financeiros | C6: 0.85 | D6: 0.7391304348 | E6: 0.85 | G6: Foi utilizada a tabela a seguir apresentada, conforme disposto no subitem 9.1 do Acórdão nº 2622/2013 – TCU – Plenário, para a definição dos percentuais de: Administração Central; Seguros e Garantias Contratuais; Riscos; Custos Financeiros, e; Lucro.
B7: D - Riscos | C7: =E7 -> 0.85 | D7: 0.7391304348 | E7: 0.85
B8: E - Seguros e Garantias Contratuais | C8: =E8 -> 0.48 | D8: 0.4173913043 | E8: 0.48
C9: Subtotal 1 | D9: =SUM(D4:D8) -> 4.895652174 | E9: 5.63
B10: LUCRO | D10: % sobre PV | E10: % sobre CD
B11: F - Lucro Operacional | C11: =E11 -> 5.11 | D11: =E11/(1+E$19/100) -> 4.443478261 | E11: 5.11
C12: Subtotal 2 | D12: =D11 -> 4.443478261 | E12: 5.11
B13: TRIBUTOS | D13: % sobre PV | E13: % sobre CD
B14: G - PIS | C14: =D14 -> 0.65 | D14: 0.65 | E14: =D14*(1+$E$19/100) -> 0.7475
B15: H - COFINS | C15: =D15 -> 3 | D15: 3 | E15: =D15*(1+$E$19/100) -> 3.45
B16: I - ISSQN | C16: =IF(D16="","",D16) ->  | E16: =IF(D16="","",D16*(1+$E$19/100)) -> 
B17: J - Contribuição Previdenciária sobre a Receita Bruta (CPRB) | C17: =IF(D17="","",D17) ->  | E17: =IF(D17="","",D17*(1+$E$19/100)) -> 
C18: Subtotal 3 | D18: =SUM(D14:D17) -> 3.65 | E18: =SUM(E14:E17) -> 4.1975
B19: BDI COM TRIBUTOS (%) | D19: =ROUND(D9+D12+D18,0) -> 13 | E19: =ROUND(E9+E12+E18,0) -> 15
